fUSD/lending_fUSD_20250417
["ID","MTS","AMOUNT","RATE_DAILY","PERIOD"]
[358218485,1744854652271,-504.54645452,0.00052054,120]
[358218486,1744854652281,-500.0,0.00052054,120]
[358218487,1744854652290,-516.11039172,0.00052054,120]
[358218488,1744854652300,-506.89190059,0.00052054,120]
[358218489,1744854652309,-500.0,0.00052054,120]
[358218490,1744854652318,-500.0,0.00052054,120]
[358218491,1744854652327,-520.86232238,0.00052054,120]
[358218492,1744854652337,-500.0,0.00052054,120]
[358218493,1744854652346,-500.0,0.00052054,120]
[358218494,1744854652356,-515.35184687,0.00052054,120]
[358218495,1744854652364,-502.04168794,0.00052054,120]
[358218496,1744854652373,-501.28843178,0.00052054,120]
[358218497,1744854652382,-500.0,0.00052054,120]
[358218498,1744854652391,-517.47465438,0.00052054,120]
[358218499,1744854652401,-502.91164568,0.00052054,120]
[358218500,1744854652411,-532.83741829,0.00052054,120]
[358218501,1744854652420,-505.6076458,0.00052054,120]
[358218502,1744854652430,-513.512548,0.00052054,120]
[358218503,1744854652439,-500.0,0.00052054,120]
[358218504,1744854652448,-500.0,0.00052054,120]
[358218505,1744854652458,-240.29762005,0.00052054,120]
[358218506,1744854652467,-530.57790899,0.00052054,7]
[358218507,1744854652476,-518.33308446,0.00052054,120]
[358218508,1744854652486,-500.0,0.00052054,120]
[358218509,1744854652495,-553.88291286,0.00052054,120]
[358218510,1744854652505,-502.51145529,0.00052054,120]
[358218511,1744854652515,-511.81259493,0.00052054,120]
[358218512,1744854652524,-500.0,0.00052054,120]
[358218513,1744854652533,-500.0,0.00052054,120]
[358218514,1744854652543,-293.32418182,0.00052054,120]
[358218515,1744854652553,-500.0,0.00052054,120]
[358218516,1744854652562,-500.0,0.00052054,120]
[358218517,1744854652571,-500.0,0.00052054,120]
[358218518,1744854652581,-500.0,0.00052054,120]
[358218519,1744854652590,-585.56112605,0.00052054,120]
[358218520,1744854652600,-500.0,0.00052054,120]
[358218521,1744854652609,-500.0,0.00052054,120]
[358218522,1744854652620,-504.40682341,0.00052054,120]
[358218523,1744854652630,-536.94590421,0.00052054,120]
[358218524,1744854652639,-220.81141951,0.00052054,120]
[358218525,1744854652649,-505.49025425,0.00052054,120]
[358218526,1744854652658,-500.0,0.00052054,120]
[358218527,1744854652668,-500.0,0.00052054,120]
[358218528,1744854652677,-526.80310908,0.00052054,120]
[358218529,1744854652687,-500.0,0.00052054,120]
[358218530,1744854652695,-500.0,0.00052054,120]
[358218531,1744854652705,-500.0,0.00052054,120]
[358218532,1744854652714,-500.0,0.00052054,120]
[358218533,1744854652723,-519.02841607,0.00052054,120]
[358218534,1744854652732,-500.0,0.00052054,120]
[358218535,1744854652741,-500.0,0.00052054,120]
[358218536,1744854652750,-238.40672693,0.00052054,120]
[358218537,1744854652759,-500.0,0.00052054,120]
[358218538,1744854652767,-580.87335558,0.00052054,120]
[358218539,1744854652778,-500.0,0.00052054,120]
[358218540,1744854652787,-500.0,0.00052054,120]
[358218541,1744854652797,-521.56180149,0.00052054,120]
[358218542,1744854652807,-500.0,0.00052054,120]
[358218543,1744854652816,-542.85142985,0.00052054,120]
[358218544,1744854652825,-500.0,0.00052054,120]
[358218545,1744854652834,-500.0,0.00052054,120]
[358218546,1744854652844,-507.15910758,0.00052054,120]
[358218547,1744854652853,-500.0,0.00052054,120]
[358218548,1744854652863,-500.0,0.00052054,120]
[358218549,1744854652873,-500.0,0.00052054,120]
[358218550,1744854652882,-501.46,0.00052054,120]
[358218551,1744854652892,-500.0,0.00052054,120]
[358218552,1744854652901,-500.0,0.00052054,120]
[358218553,1744854652910,-500.0,0.00052054,120]
[358218554,1744854652919,-556.84291785,0.00052054,120]
[358218555,1744854652928,-526.50600647,0.00052054,120]
[358218556,1744854652938,-505.28332515,0.00052054,120]
[358218557,1744854652947,-500.0,0.00052054,120]
[358218558,1744854652956,-651.32,0.00052054,120]
[358218559,1744854652966,-528.0979594,0.00052054,120]
[358218560,1744854652975,-535.16971348,0.00052054,120]
[358218561,1744854652985,-503.27986585,0.00052054,120]
[358218562,1744854652994,-525.81907669,0.00052054,120]
[358218563,1744854653003,-500.0,0.00052054,120]
[358218564,1744854653012,-500.0,0.00052054,120]
[358218565,1744854653022,-1969.24,0.00052054,120]
[358218566,1744854653031,-547.24,0.00052054,120]
[358218567,1744854653040,-500.0,0.00052054,120]
[358218568,1744854653049,-500.0,0.00052054,120]
[358218569,1744854653059,-500.0,0.00052054,120]
[358218570,1744854653071,-242.12831429,0.00052054,120]
[358218571,1744854653083,-500.0,0.00052054,120]
[358218572,1744854653092,-500.0,0.00052054,120]
[358218573,1744854653101,-1305.81,0.00052054,35]
[358218574,1744854653193,-517.94718911,0.00052054,120]
[358218575,1744854653203,-500.0,0.00052054,120]
[358218576,1744854653213,-413.45096869,0.00052054,120]
[358218577,1744854653223,-500.0,0.00052054,120]
[358218578,1744854653232,-542.81308681,0.00052054,120]
[358218579,1744854653242,-500.0,0.00052054,120]
[358218580,1744854653252,-500.0,0.00052054,120]
[358218581,1744854653261,-1067.01,0.00052054,120]
[358218582,1744854653271,-824.88,0.00052054,120]
[358218583,1744854653281,-500.0,0.00052054,120]
[358218584,1744854653290,-280.90185264,0.00052054,120]
[358218585,1744854653299,-155.383724,0.00052054,120]
[358218586,1744854653309,-500.0,0.00052054,120]
[358218587,1744854653318,-500.0,0.00052054,120]
[358218588,1744854653328,-658.721737,0.00052054,120]
[358218589,1744854653337,-500.0,0.00052054,120]
[358218590,1744854653346,-624.56592874,0.00052054,120]
[358218591,1744854653355,-500.0,0.00052054,120]
[358218592,1744854653365,-1172.02,0.00052054,120]
[358218593,1744854653374,-658.721737,0.00052054,120]
[358218594,1744854653383,-163.26272832,0.00052054,2]
[358218595,1744854653393,-589.9090243,0.00052054,120]
[358218596,1744854653402,-500.0,0.00052054,120]
[358218597,1744854653411,-585.78204895,0.00052054,120]
[358218598,1744854653421,-500.0,0.00052054,120]
[358218599,1744854653430,-500.0,0.00052054,120]
[358218600,1744854653439,-503.1773556,0.00052054,120]
[358218601,1744854653448,-500.0,0.00052054,120]
[358218602,1744854653457,-500.0,0.00052054,120]
[358218603,1744854653467,-500.0,0.00052054,120]
[358218604,1744854653476,-500.0,0.00052054,120]
[358218605,1744854653485,-1796.78,0.00052054,15]
[358218606,1744854653494,-1117.56,0.00052054,120]
[358218607,1744854653504,-1796.78,0.00052054,15]
[358218608,1744854653514,-500.0,0.00052054,2]
[358218609,1744854653524,-1796.78,0.00052054,15]
[358218610,1744854653533,-1796.78,0.00052054,15]
[358218611,1744854653543,-1796.78,0.00052054,15]
[358218612,1744854653552,-500.0,0.00052054,120]
[358218613,1744854653562,-500.0,0.00052054,120]
[358218614,1744854653571,-500.0,0.00052054,120]
[358218615,1744854653581,-500.0,0.00052054,120]
[358218616,1744854653590,-500.0,0.00052054,120]
[358218617,1744854653600,-500.0,0.00052054,120]
[358218618,1744854653610,-500.0,0.00052054,120]
[358218619,1744854653621,-500.0,0.00052054,120]
[358218620,1744854653631,-516.09633087,0.00052054,120]
[358218621,1744854653641,-576.26213359,0.00052054,120]
[358218622,1744854653651,-500.0,0.00052054,120]
[358218623,1744854653661,-500.0,0.00052054,120]
[358218624,1744854653670,-500.0,0.00052054,120]
[358218625,1744854653680,-500.0,0.00052054,120]
[358218626,1744854653690,-500.0,0.00052054,120]
[358218627,1744854653700,-500.0,0.00052054,120]
[358218628,1744854653710,-500.0,0.00052054,120]
[358218629,1744854653719,-500.0,0.00052054,120]
[358218630,1744854653729,-526.62502474,0.00052054,120]
[358218631,1744854653738,-1357.6,0.00052054,120]
[358218632,1744854653758,-500.0,0.00052054,120]
[358218633,1744854653775,-500.0,0.00052054,120]
[358218634,1744854653793,-283.49355368,0.00052054,120]
[358218635,1744854653812,-500.0,0.00052054,120]
[358218636,1744854653828,-516.78298657,0.00052054,120]
[358218637,1744854653847,-500.0,0.00052054,120]
[358218638,1744854653866,-500.0,0.00052054,120]
[358218639,1744854653886,-594.30430589,0.00052054,120]
[358218640,1744854653905,-534.19338124,0.00052054,120]
[358218641,1744854653922,-500.0,0.00052054,120]
[358218642,1744854653940,-500.0,0.00052054,120]
[358218643,1744854653956,-500.0,0.00052054,120]
[358218644,1744854653974,-500.0,0.00052054,120]
[358218645,1744854653987,-500.0,0.00052054,120]
[358218646,1744854654006,-500.0,0.00052054,120]
[358218647,1744854654020,-1824.95,0.00052054,120]
[358218648,1744854654036,-151.831474,0.00052054,120]
[358218649,1744854654051,-527.31733143,0.00052054,2]
[358218650,1744854654067,-500.0,0.00052054,120]
[358218651,1744854654086,-839.32,0.00052054,120]
[358218652,1744854654103,-500.0,0.00052054,120]
[358218653,1744854654117,-526.14953042,0.00052054,120]
[358218654,1744854654132,-500.0,0.00052054,120]
[358218655,1744854654148,-558.13682733,0.00052054,120]
[358218656,1744854654163,-500.0,0.00052054,120]
[358218657,1744854654179,-1069.69,0.00052054,120]
[358218658,1744854654194,-500.0,0.00052054,120]
[358218659,1744854654209,-500.0,0.00052054,120]
[358218660,1744854654225,-500.0,0.00052054,120]
[358218661,1744854654240,-500.0,0.00052054,120]
[358218662,1744854654254,-510.0,0.00052055,120]
[358218663,1744854654270,-200.0,0.00052073,10]
[358218664,1744854654285,-170.30332361,0.00052073,10]
[358218665,1744854654301,-178.10217209,0.00052086,30]
[358218666,1744854654317,-511.08628454,0.000521,2]
[358218667,1744854654332,-500.0,0.00052104,20]
[358218668,1744854654348,-152.0,0.00052109,3]
[358218669,1744854654364,-178.10217209,0.00052141,30]
[358218670,1744854654380,-178.10217209,0.00052196,30]
[358218671,1744854654395,-500.0,0.00052241,20]
[358218672,1744854654411,-178.10217209,0.00052252,30]
[358218673,1744854654427,-135136.7228999,0.00052292,2]
[358218674,1744854654441,-150.55,0.00052305,30]
[358218675,1744854654457,-178.10217209,0.00052307,30]
[358218676,1744854654472,-72598.718086,0.00052318,4]
[358218677,1744854654488,-500.0,0.00052328,120]
[358218678,1744854654503,-500.0,0.00052328,120]
[358218679,1744854654518,-537.29234295,0.00052328,120]
[358218680,1744854654532,-633.04,0.00052328,120]
[358218681,1744854654547,-741.12,0.00052328,120]
[358218682,1744854654563,-942.0,0.00052328,120]
[358218683,1744854654578,-509.04912985,0.00052328,120]
[358218684,1744854654593,-500.0,0.00052328,120]
[358218685,1744854654607,-1165.78,0.00052328,120]
[358218686,1744854654622,-531.83124374,0.00052328,120]
[358218687,1744854654636,-533.72860335,0.00052328,120]
[358218688,1744854654759,-601.92244184,0.00052328,120]
[358218689,1744854654772,-527.6566126,0.00052328,120]
[358218690,1744854654782,-609.86,0.00052328,120]
[358218691,1744854654791,-603.6,0.00052328,30]
[358218692,1744854654801,-500.0,0.00052328,120]
[358218693,1744854654810,-500.0,0.00052328,120]
[358218694,1744854654819,-522.60457502,0.00052328,120]
[358218695,1744854654828,-500.0,0.00052328,120]
[358218696,1744854654837,-500.0,0.00052328,120]
[358218697,1744854654847,-716.81,0.00052328,120]
[358218698,1744854654856,-1153.37,0.00052328,120]
[358218699,1744854654865,-528.42198213,0.00052328,120]
[358218700,1744854654875,-500.0,0.00052328,120]
[358218701,1744854654884,-520.28228124,0.00052328,120]
[358218702,1744854654893,-515.03582673,0.00052328,120]
[358218703,1744854654902,-559.32091276,0.00052328,120]
[358218704,1744854654911,-519.59065965,0.00052328,120]
[358218705,1744854654920,-528.95096898,0.00052328,120]
[358218706,1744854654929,-520.20726785,0.00052328,120]
[358218707,1744854654938,-1067.9,0.00052328,8]
[358218708,1744854654947,-518.59658704,0.00052328,120]
[358218709,1744854654956,-500.0,0.00052328,120]
[358218710,1744854654966,-151.0,0.00052328,120]
[358218711,1744854654975,-544.16524549,0.00052328,120]
[358218712,1744854654985,-532.58125414,0.00052328,120]
[358218713,1744854654994,-571.17741187,0.00052328,120]
[358218714,1744854655003,-530.85223993,0.00052328,120]
[358218715,1744854655012,-834.1,0.00052328,120]
[358218716,1744854655023,-535.1600528,0.00052328,120]
[358218717,1744854655032,-536.08437319,0.00052328,120]
[358218718,1744854655042,-590.71133694,0.00052328,120]
[358218719,1744854655051,-709.13,0.00052328,120]
[358218720,1744854655063,-500.0,0.00052328,120]
[358218721,1744854655073,-562.51472681,0.00052328,120]
[358218722,1744854655082,-547.1558741,0.00052328,120]
[358218723,1744854655092,-507.6,0.00052328,120]
[358218724,1744854655101,-500.0,0.00052328,120]
[358218725,1744854655110,-500.0,0.00052328,120]
[358218726,1744854655121,-500.0,0.00052328,120]
[358218727,1744854655130,-631.81,0.00052328,120]
[358218728,1744854655141,-500.0,0.00052328,120]
[358218729,1744854655151,-500.0,0.00052328,120]
[358218730,1744854655160,-522.40042067,0.00052328,120]
[358218731,1744854655170,-500.0,0.00052328,120]
[358218732,1744854655179,-500.0,0.00052328,120]
[358218733,1744854655189,-500.0,0.00052328,120]
[358218734,1744854655198,-500.0,0.00052328,120]
[358218735,1744854655207,-500.0,0.00052328,120]
[358218736,1744854655217,-540.08248652,0.00052328,120]
[358218737,1744854655226,-500.0,0.00052328,120]
[358218738,1744854655236,-500.0,0.00052328,120]
[358218739,1744854655245,-500.0,0.00052328,120]
[358218740,1744854655255,-599.58,0.00052328,120]
[358218741,1744854655264,-500.0,0.00052328,120]
[358218742,1744854655274,-511.92009329,0.00052328,120]
[358218743,1744854655284,-737.91,0.00052328,120]
[358218744,1744854655293,-500.0,0.00052328,120]
[358218745,1744854655303,-587.84,0.00052328,120]
[358218746,1744854655312,-500.0,0.00052328,120]
[358218747,1744854655322,-500.0,0.00052328,120]
[358218748,1744854655331,-533.56178818,0.00052328,120]
[358218749,1744854655340,-525.38846039,0.00052328,120]
[358218750,1744854655350,-513.27428983,0.00052328,120]
[358218751,1744854655360,-583.84816844,0.00052328,120]
[358218752,1744854655369,-500.0,0.00052328,120]
[358218753,1744854655379,-500.0,0.00052328,120]
[358218754,1744854655388,-706.998014,0.00052328,120]
[358218755,1744854655398,-501.06055645,0.00052328,120]
[358218756,1744854655407,-500.0,0.00052328,120]
[358218757,1744854655416,-154.386344,0.00052328,120]
[358218758,1744854655426,-456.18263357,0.00052328,120]
[358218759,1744854655435,-500.0,0.00052328,120]
[358218760,1744854655444,-500.0,0.00052328,120]
[358218761,1744854655454,-500.0,0.00052328,120]
[358218762,1744854655463,-500.0,0.00052328,120]
[358218763,1744854655472,-153.090261,0.00052328,120]
[358218764,1744854655481,-523.93950811,0.00052328,120]
[358218765,1744854655491,-505.91985096,0.00052328,2]
[358218766,1744854655502,-365.925591,0.00052328,120]
[358218767,1744854655512,-1258.89,0.00052328,120]
[358218768,1744854655521,-500.0,0.00052328,120]
[358218769,1744854655530,-500.0,0.00052328,120]
[358218770,1744854655540,-799.91,0.00052328,120]
[358218771,1744854655549,-500.0,0.00052328,120]
[358218772,1744854655559,-500.0,0.00052328,120]
[358218773,1744854655568,-500.0,0.00052328,120]
[358218774,1744854655577,-500.0,0.00052328,120]
[358218775,1744854655586,-500.0,0.00052328,120]
[358218776,1744854655595,-500.0,0.00052328,120]
[358218777,1744854655604,-500.0,0.00052328,120]
[358218778,1744854655613,-500.0,0.00052328,120]
[358218779,1744854655623,-500.0,0.00052328,120]
[358218780,1744854655632,-3015.912726,0.00052328,120]
[358218781,1744854655641,-500.0,0.00052328,120]
[358218782,1744854655650,-500.0,0.00052328,120]
[358218783,1744854655659,-500.0,0.00052328,120]
[358218784,1744854655669,-500.0,0.00052328,120]
[358218785,1744854655678,-539.67860596,0.00052328,120]
[358218786,1744854655688,-500.0,0.00052328,120]
[358218787,1744854655697,-567.07228617,0.00052328,120]
[358218788,1744854655706,-500.0,0.00052328,120]
[358218789,1744854655715,-500.0,0.00052328,120]
[358218790,1744854655725,-546.27924055,0.00052328,120]
[358218791,1744854655734,-503.48794253,0.00052328,120]
[358218792,1744854655743,-500.0,0.00052328,120]
[358218793,1744854655752,-1009.73,0.00052328,120]
[358218794,1744854655761,-500.0,0.00052328,120]
[358218795,1744854655771,-500.0,0.00052328,120]
[358218796,1744854655780,-500.0,0.00052328,120]
[358218797,1744854655790,-500.0,0.00052328,120]
[358218798,1744854655799,-500.0,0.00052328,120]
[358218799,1744854655808,-500.0,0.00052328,120]
[358218800,1744854655817,-500.0,0.00052328,120]
[358218801,1744854655826,-500.0,0.00052328,120]
[358218802,1744854655835,-500.0,0.00052328,120]
[358218803,1744854655845,-500.62053281,0.00052328,120]
[358218804,1744854655855,-500.0,0.00052328,120]
[358218805,1744854655864,-500.0,0.00052328,120]
[358218806,1744854655876,-500.0,0.00052328,120]
[358218807,1744854655885,-500.0,0.00052328,120]
[358218808,1744854655895,-500.0,0.00052328,120]
[358218809,1744854655904,-500.0,0.00052328,120]
[358218810,1744854655914,-500.0,0.00052328,120]
[358218811,1744854655923,-500.0,0.00052328,120]
[358218812,1744854655932,-500.0,0.00052328,120]
[358218813,1744854655941,-197.85308618,0.00052328,120]
[358218814,1744854655951,-500.0,0.00052328,120]
[358218815,1744854656039,-526.55,0.00052328,120]
[358218816,1744854656049,-500.0,0.00052328,120]
[358218817,1744854656059,-568.8540277,0.00052328,120]
[358218818,1744854656069,-500.0,0.00052328,120]
[358218819,1744854656083,-500.0,0.00052328,120]
[358218820,1744854656092,-500.0,0.00052328,120]
[358218821,1744854656102,-500.0,0.00052328,120]
[358218822,1744854656112,-500.0,0.00052328,120]
[358218823,1744854656126,-500.0,0.00052328,120]
[358218824,1744854656136,-500.0,0.00052328,120]
[358218825,1744854656147,-534.22843053,0.00052328,120]
[358218826,1744854656157,-500.0,0.00052328,120]
[358218827,1744854656168,-500.0,0.00052328,120]
[358218828,1744854656177,-500.0,0.00052328,120]
[358218829,1744854656187,-500.0,0.00052328,120]
[358218830,1744854656196,-500.0,0.00052328,120]
[358218831,1744854656206,-885.35,0.00052328,120]
[358218832,1744854656215,-500.0,0.00052328,120]
[358218833,1744854656224,-500.0,0.00052328,120]
[358218834,1744854656234,-500.0,0.00052328,120]
[358218835,1744854656244,-511.88276056,0.00052328,120]
[358218836,1744854656254,-313.55580528,0.00052328,61]
[358218837,1744854656264,-500.0,0.00052328,120]
[358218838,1744854656273,-500.0,0.00052328,120]
[358218839,1744854656283,-550.45372711,0.00052328,120]
[358218840,1744854656292,-500.0,0.00052328,120]
[358218841,1744854656302,-500.0,0.00052328,120]
[358218842,1744854656311,-722.16,0.00052328,120]
[358218843,1744854656321,-500.0,0.00052328,7]
[358218844,1744854656330,-500.0,0.00052328,120]
[358218845,1744854656340,-730.39,0.00052328,118]
[358218846,1744854656350,-500.0,0.00052328,120]
[358218847,1744854656359,-500.0,0.00052328,120]
[358218848,1744854656369,-500.0,0.00052328,120]
[358218849,1744854656379,-500.0,0.00052328,120]
[358218850,1744854656389,-500.0,0.00052328,120]
[358218851,1744854656399,-508.27500791,0.00052328,120]
[358218852,1744854656408,-500.0,0.00052328,120]
[358218853,1744854656418,-592.47709014,0.00052328,120]
[358218854,1744854656428,-500.0,0.00052328,120]
[358218855,1744854656437,-500.0,0.00052328,120]
[358218856,1744854656446,-500.0,0.00052328,120]
[358218857,1744854656456,-958.07,0.00052328,120]
[358218858,1744854656466,-500.0,0.00052328,120]
[358218859,1744854656476,-500.0,0.00052328,120]
[358218860,1744854656486,-500.0,0.00052328,120]
[358218861,1744854656495,-1000.0,0.00052328,120]
[358218862,1744854656505,-500.0,0.00052328,120]
[358218863,1744854656515,-517.00827923,0.00052328,120]
[358218864,1744854656525,-1222.41,0.00052328,120]
[358218865,1744854656535,-500.0,0.00052328,120]
[358218866,1744854656545,-500.0,0.00052328,120]
[358218867,1744854656555,-598.74547227,0.00052328,120]
[358218868,1744854656564,-592.51,0.00052328,120]
[358218869,1744854656574,-500.0,0.00052328,120]
[358218870,1744854656583,-500.0,0.00052328,120]
[358218871,1744854656592,-500.0,0.00052328,120]
[358218872,1744854656602,-500.0,0.00052328,120]
[358218873,1744854656611,-500.0,0.00052328,120]
[358218874,1744854656620,-500.0,0.00052328,120]
[358218875,1744854656629,-500.0,0.00052328,120]
[358218876,1744854656638,-500.0,0.00052328,120]
[358218877,1744854656648,-500.0,0.00052328,120]
[358218878,1744854656657,-500.0,0.00052328,120]
[358218879,1744854656666,-500.0,0.00052328,120]
[358218880,1744854656676,-500.0,0.00052328,120]
[358218881,1744854656685,-500.0,0.00052328,120]
[358218882,1744854656694,-500.0,0.00052328,120]
[358218883,1744854656703,-500.0,0.00052328,120]
[358218884,1744854656712,-546.81322748,0.00052328,120]
[358218885,1744854656721,-591.61240327,0.00052328,120]
[358218886,1744854656730,-500.0,0.00052328,120]
[358218887,1744854656739,-500.0,0.00052328,120]
[358218888,1744854656748,-500.0,0.00052328,120]
[358218889,1744854656757,-511.12187176,0.00052328,120]
[358218890,1744854656766,-500.0,0.00052328,120]
[358218891,1744854656775,-500.0,0.00052328,120]
[358218892,1744854656784,-500.0,0.00052328,120]
[358218893,1744854656793,-500.0,0.00052328,120]
[358218894,1744854656803,-500.0,0.00052328,120]
[358218895,1744854656812,-518.07334365,0.00052328,120]
[358218896,1744854656822,-500.0,0.00052328,120]
[358218897,1744854656831,-500.0,0.00052328,120]
[358218898,1744854656841,-500.0,0.00052328,120]
[358218899,1744854656851,-500.0,0.00052328,120]
[358218900,1744854656861,-541.78225392,0.00052328,120]
[358218901,1744854656871,-500.0,0.00052328,120]
[358218902,1744854656880,-500.0,0.00052328,120]
[358218903,1744854656889,-512.93651891,0.00052328,120]
[358218904,1744854656899,-501.46,0.00052328,120]
[358218905,1744854656908,-500.0,0.00052328,120]
[358218906,1744854656918,-500.0,0.00052328,120]
[358218907,1744854656927,-500.0,0.00052328,120]
[358218908,1744854656937,-500.0,0.00052328,120]
[358218909,1744854656947,-651.32,0.00052328,120]
[358218910,1744854656955,-500.0,0.00052328,120]
[358218911,1744854656964,-628.93516739,0.00052328,120]
[358218912,1744854656973,-1969.24,0.00052328,120]
[358218913,1744854656982,-547.24,0.00052328,120]
[358218914,1744854656991,-500.0,0.00052328,120]
[358218915,1744854657000,-504.98177591,0.00052328,120]
[358218916,1744854657008,-500.0,0.00052328,120]
[358218917,1744854657017,-500.0,0.00052328,120]
[358218918,1744854657026,-1305.81,0.00052328,35]
[358218919,1744854657035,-608.95610591,0.00052328,120]
[358218920,1744854657043,-559.88913792,0.00052328,120]
[358218921,1744854657053,-500.0,0.00052328,120]
[358218922,1744854657063,-500.0,0.00052328,120]
[358218923,1744854657075,-500.0,0.00052328,120]
[358218924,1744854657084,-1067.01,0.00052328,120]
[358218925,1744854657093,-824.88,0.00052328,120]
[358218926,1744854657103,-500.0,0.00052328,120]
[358218927,1744854657112,-500.0,0.00052328,120]
[358218928,1744854657123,-500.0,0.00052328,120]
[358218929,1744854657132,-500.0,0.00052328,120]
[358218930,1744854657141,-500.0,0.00052328,120]
[358218931,1744854657152,-1172.02,0.00052328,120]
[358218932,1744854657161,-500.0,0.00052328,120]
[358218933,1744854657172,-500.0,0.00052328,120]
[358218934,1744854657186,-504.13835725,0.00052328,120]
[358218935,1744854657197,-500.0,0.00052328,120]
[358218936,1744854657207,-501.4827629,0.00052328,120]
[358218937,1744854657216,-500.0,0.00052328,120]
[358218938,1744854657226,-500.0,0.00052328,120]
[358218939,1744854657235,-1117.56,0.00052328,120]
[358218940,1744854657245,-500.0,0.00052328,2]
[358218941,1744854657255,-500.0,0.00052328,120]
[358218942,1744854657264,-500.0,0.00052328,120]
[358218943,1744854657274,-500.0,0.00052328,120]
[358218944,1744854657283,-501.77349219,0.00052328,120]
[358218945,1744854657293,-500.0,0.00052328,120]
[358218946,1744854657303,-500.0,0.00052328,120]
[358218947,1744854657313,-500.0,0.00052328,120]
[358218948,1744854657322,-507.53231771,0.00052328,120]
[358218949,1744854657332,-500.0,0.00052328,120]
[358218950,1744854657342,-500.0,0.00052328,120]
[358218951,1744854657351,-500.0,0.00052328,120]
[358218952,1744854657361,-500.0,0.00052328,120]
[358218953,1744854657371,-500.0,0.00052328,120]
[358218954,1744854657380,-1357.6,0.00052328,120]
[358218955,1744854657391,-500.0,0.00052328,120]
[358218956,1744854657400,-500.0,0.00052328,120]
[358218957,1744854657410,-601.92864583,0.00052328,120]
[358218958,1744854657420,-510.80824628,0.00052328,120]
[358218959,1744854657430,-500.0,0.00052328,120]
[358218960,1744854657439,-500.0,0.00052328,120]
[358218961,1744854657449,-607.40355621,0.00052328,120]
[358218962,1744854657459,-500.0,0.00052328,120]
[358218963,1744854657469,-536.1811992,0.00052328,120]
[358218964,1744854657479,-541.39578451,0.00052328,120]
[358218965,1744854657488,-500.0,0.00052328,120]
[358218966,1744854657498,-1824.95,0.00052328,120]
[358218967,1744854657507,-530.93999108,0.00052328,120]
[358218968,1744854657517,-839.32,0.00052328,120]
[358218969,1744854657526,-537.87027832,0.00052328,120]
[358218970,1744854657535,-500.0,0.00052328,120]
[358218971,1744854657545,-530.36922021,0.00052328,120]
[358218972,1744854657555,-1069.69,0.00052328,120]
[358218973,1744854657565,-500.0,0.00052328,120]
[358218974,1744854657574,-500.0,0.00052328,120]
[358218975,1744854657583,-504.38869067,0.00052328,120]
[358218976,1744854657593,-500.0,0.00052328,120]
[358218977,1744854657602,-178.10217209,0.00052362,30]
[358218978,1744854657611,-500.0,0.00052378,20]
[358218979,1744854657621,-4937.21,0.000524,60]
[358218980,1744854657631,-178.10217209,0.00052417,30]
[358218981,1744854657640,-178.10217209,0.00052473,30]
[358218982,1744854657649,-500.0,0.00052515,20]
[358218983,1744854657659,-178.10217209,0.00052528,30]
[358218984,1744854657668,-178.10217209,0.00052583,30]